[Event "Titled Tuesday Blitz October 31 Late 2023"]
[White "Cardozo Munar, Carlos Eduardo"]
[Black "Oliveira, Tiago Batista"]
[WhiteFideId "4409477"]
[BlackFideId "2108291"]
[WhiteElo "2256"]
[BlackElo "2044"]
[Result "1-0"]
[Round "4"]
[TimeControl "180+1"]
[Date "2023.10.31"]
[WhiteClock "0:01:30"]
[BlackClock "0:00:02"]
[Board "157"]

1. d4 {[%clk 0:02:55]}  Nf6 {[%clk 0:02:52]} 2. Bg5 {[%clk 0:02:49]}  d5 {[%clk 0:02:51]} 3. Bxf6 {[%clk 0:02:47]}  gxf6 {[%clk 0:02:49]} 4. g3 {[%clk 0:02:48]}  c6 {[%clk 0:02:44]} 5. Bg2 {[%clk 0:02:49]}  Bg7 {[%clk 0:02:43]} 6. Nd2 {[%clk 0:02:49]}  f5 {[%clk 0:02:42]} 7. c3 {[%clk 0:02:49]}  Nd7 {[%clk 0:02:41]} 8. Ngf3 {[%clk 0:02:48]}  e6 {[%clk 0:02:39]} 9. O-O {[%clk 0:02:48]}  Nf6 {[%clk 0:02:39]} 10. a4 {[%clk 0:02:47]}  Ne4 {[%clk 0:02:31]} 11. a5 {[%clk 0:02:48]}  Qf6 {[%clk 0:02:30]} 12. a6 {[%clk 0:02:45]}  b6 {[%clk 0:02:30]} 13. Ne5 {[%clk 0:02:45]}  Bd7 {[%clk 0:02:22]} 14. Nxd7 {[%clk 0:02:45]}  Kxd7 {[%clk 0:02:21]} 15. Nf3 {[%clk 0:02:46]}  Qg6 {[%clk 0:02:11]} 16. Qa4 {[%clk 0:02:44]}  Rhc8 {[%clk 0:02:10]} 17. e3 {[%clk 0:02:41]}  f6 {[%clk 0:02:04]} 18. c4 {[%clk 0:02:40]}  Ke7 {[%clk 0:01:55]} 19. Rac1 {[%clk 0:02:38]}  Qe8 {[%clk 0:01:46]} 20. Rc2 {[%clk 0:02:30]}  Qd7 {[%clk 0:01:42]} 21. Rfc1 {[%clk 0:02:30]}  Bf8 {[%clk 0:01:25]} 22. Ne1 {[%clk 0:02:21]}  b5 {[%clk 0:01:13]} 23. cxb5 {[%clk 0:02:17]}  cxb5 {[%clk 0:01:13]} 24. Qa5 {[%clk 0:02:18]}  Rxc2 {[%clk 0:00:55]} 25. Rxc2 {[%clk 0:02:19]}  Rc8 {[%clk 0:00:42]} 26. Rxc8 {[%clk 0:02:19]}  Qxc8 {[%clk 0:00:42]} 27. Bxe4 {[%clk 0:02:20]}  fxe4 {[%clk 0:00:41]} 28. Qxb5 {[%clk 0:02:20]}  Qc1 {[%clk 0:00:40]} 29. Qb7+ {[%clk 0:02:12]}  Ke8 {[%clk 0:00:40]} 30. Kf1 {[%clk 0:02:13]}  Qd2 {[%clk 0:00:35]} 31. Qxa7 {[%clk 0:02:02]}  Bb4 {[%clk 0:00:34]} 32. Qb8+ {[%clk 0:02:02]}  Kf7 {[%clk 0:00:33]} 33. a7 {[%clk 0:02:02]}  Qxe1+ {[%clk 0:00:22]} 34. Kg2 {[%clk 0:02:02]}  Qe2 {[%clk 0:00:17]} 35. Qxb4 {[%clk 0:02:00]}  Qf3+ {[%clk 0:00:15]} 36. Kf1 {[%clk 0:01:59]}  Qd1+ {[%clk 0:00:15]} 37. Qe1 {[%clk 0:01:59]}  Qa4 {[%clk 0:00:12]} 38. Qb1 {[%clk 0:01:52]}  Qxa7 {[%clk 0:00:10]} 39. b4 {[%clk 0:01:53]}  Qa6+ {[%clk 0:00:08]} 40. b5 {[%clk 0:01:51]}  Qb6 {[%clk 0:00:09]} 41. Qb4 {[%clk 0:01:51]}  f5 {[%clk 0:00:07]} 42. Qc5 {[%clk 0:01:46]}  Qa5 {[%clk 0:00:08]} 43. b6 {[%clk 0:01:43]}  Qa1+ {[%clk 0:00:07]} 44. Kg2 {[%clk 0:01:44]}  Qd1 {[%clk 0:00:07]} 45. Qc7+ {[%clk 0:01:34]}  Kg6 {[%clk 0:00:06]} 46. Qf4 {[%clk 0:01:33]}  Qb1 {[%clk 0:00:04]} 47. Qd6 {[%clk 0:01:30]}  Qd1 {[%clk 0:00:04]} 48. Qxe6+ {[%clk 0:01:30]}  Kh5 {[%clk 0:00:02]} 49. Qxf5+ {[%clk 0:01:30]} 1-0


[Site "https://www.chess.com"]

[Event "Titled Tuesday Blitz October 31 Late 2023"]
[White "Slavin, Alexey"]
[Black "leonidsh29"]
[WhiteFideId "24104388"]
[WhiteElo "2249"]
[BlackElo "2032"]
[Result "1-0"]
[Round "4"]
[TimeControl "180+1"]
[Date "2023.10.31"]
[WhiteClock "0:00:48"]
[BlackClock "0:00:00"]
[Board "158"]

1. e4 {[%clk 0:02:59]}  d5 {[%clk 0:02:57]} 2. Nc3 {[%clk 0:02:58]}  dxe4 {[%clk 0:02:54]} 3. Nxe4 {[%clk 0:02:58]}  Nf6 {[%clk 0:02:50]} 4. Nxf6+ {[%clk 0:02:58]}  exf6 {[%clk 0:02:49]} 5. Bc4 {[%clk 0:02:58]}  Be6 {[%clk 0:02:47]} 6. Qe2 {[%clk 0:02:57]}  Qd7 {[%clk 0:02:45]} 7. d4 {[%clk 0:02:54]}  Be7 {[%clk 0:02:42]} 8. Nf3 {[%clk 0:02:48]}  O-O {[%clk 0:02:38]} 9. O-O {[%clk 0:02:47]}  Bxc4 {[%clk 0:02:31]} 10. Qxc4 {[%clk 0:02:47]}  c6 {[%clk 0:02:22]} 11. c3 {[%clk 0:02:46]}  Na6 {[%clk 0:02:13]} 12. Bf4 {[%clk 0:02:43]}  Bd6 {[%clk 0:02:11]} 13. Bg3 {[%clk 0:02:31]}  Bxg3 {[%clk 0:02:09]} 14. hxg3 {[%clk 0:02:31]}  Rfe8 {[%clk 0:02:08]} 15. Rfe1 {[%clk 0:02:31]}  Nc7 {[%clk 0:02:03]} 16. Nd2 {[%clk 0:02:19]}  Qd5 {[%clk 0:02:01]} 17. Qb3 {[%clk 0:02:15]}  Qxb3 {[%clk 0:01:58]} 18. axb3 {[%clk 0:02:12]}  a6 {[%clk 0:01:56]} 19. Nc4 {[%clk 0:02:09]}  Nb5 {[%clk 0:01:47]} 20. Kf1 {[%clk 0:02:07]}  Kf8 {[%clk 0:01:45]} 21. Nb6 {[%clk 0:02:01]}  Rad8 {[%clk 0:01:27]} 22. Rxe8+ {[%clk 0:01:50]}  Kxe8 {[%clk 0:01:19]} 23. Re1+ {[%clk 0:01:49]}  Kf8 {[%clk 0:01:18]} 24. f3 {[%clk 0:01:47]}  Nd6 {[%clk 0:01:09]} 25. g4 {[%clk 0:01:39]}  Nc8 {[%clk 0:01:07]} 26. Na4 {[%clk 0:01:31]}  Re8 {[%clk 0:01:00]} 27. Nc5 {[%clk 0:01:28]}  Rxe1+ {[%clk 0:00:57]} 28. Kxe1 {[%clk 0:01:28]}  Nd6 {[%clk 0:00:56]} 29. Ke2 {[%clk 0:01:26]}  Ke7 {[%clk 0:00:52]} 30. Ke3 {[%clk 0:01:25]}  a5 {[%clk 0:00:47]} 31. Kf4 {[%clk 0:01:23]}  b6 {[%clk 0:00:45]} 32. Na4 {[%clk 0:01:14]}  Nc8 {[%clk 0:00:42]} 33. Ke4 {[%clk 0:01:12]}  Kd6 {[%clk 0:00:41]} 34. f4 {[%clk 0:01:10]}  g6 {[%clk 0:00:39]} 35. f5 {[%clk 0:01:06]}  g5 {[%clk 0:00:37]} 36. c4 {[%clk 0:01:02]}  b5 {[%clk 0:00:36]} 37. Nc5 {[%clk 0:01:01]}  bxc4 {[%clk 0:00:30]} 38. bxc4 {[%clk 0:01:00]}  Kc7 {[%clk 0:00:22]} 39. b3 {[%clk 0:00:56]}  Nd6+ {[%clk 0:00:20]} 40. Kd3 {[%clk 0:00:56]}  Nb7 {[%clk 0:00:19]} 41. Ne4 {[%clk 0:00:54]}  Nd6 {[%clk 0:00:17]} 42. Nxf6 {[%clk 0:00:54]}  Nxc4 {[%clk 0:00:11]} 43. Kxc4 {[%clk 0:00:53]}  Kd6 {[%clk 0:00:10]} 44. Nxh7 {[%clk 0:00:52]}  f6 {[%clk 0:00:08]} 45. Nxf6 {[%clk 0:00:52]}  a4 {[%clk 0:00:07]} 46. bxa4 {[%clk 0:00:51]}  c5 {[%clk 0:00:06]} 47. dxc5+ {[%clk 0:00:50]}  Kc7 {[%clk 0:00:00]} 48. Kd5 {[%clk 0:00:48]} 1-0


[Site "https://www.chess.com"]

[Event "Titled Tuesday Blitz October 31 Late 2023"]
[White "Krasik, Ilya"]
[Black "Hon, Eric"]
[WhiteFideId "2024527"]
[BlackFideId "2097117"]
[WhiteElo "2010"]
[BlackElo "2248"]
[Result "0-1"]
[Round "4"]
[TimeControl "180+1"]
[Date "2023.10.31"]
[WhiteClock "0:00:07"]
[BlackClock "0:00:03"]
[Board "159"]

1. d4 {[%clk 0:03:00]}  Nf6 {[%clk 0:02:59]} 2. c4 {[%clk 0:03:00]}  c5 {[%clk 0:02:50]} 3. d5 {[%clk 0:03:00]}  b5 {[%clk 0:02:44]} 4. cxb5 {[%clk 0:02:59]}  a6 {[%clk 0:02:42]} 5. b6 {[%clk 0:02:59]}  d6 {[%clk 0:02:41]} 6. Nc3 {[%clk 0:02:59]}  Nbd7 {[%clk 0:02:40]} 7. a4 {[%clk 0:02:58]}  a5 {[%clk 0:02:35]} 8. e4 {[%clk 0:02:56]}  Nxb6 {[%clk 0:02:34]} 9. Bb5+ {[%clk 0:02:54]}  Bd7 {[%clk 0:02:33]} 10. Nf3 {[%clk 0:02:54]}  e6 {[%clk 0:02:32]} 11. dxe6 {[%clk 0:02:29]}  fxe6 {[%clk 0:02:29]} 12. Bf4 {[%clk 0:02:16]}  Bxb5 {[%clk 0:02:16]} 13. axb5 {[%clk 0:01:32]}  Be7 {[%clk 0:02:15]} 14. O-O {[%clk 0:01:25]}  O-O {[%clk 0:02:15]} 15. Bg3 {[%clk 0:01:25]}  Nh5 {[%clk 0:02:09]} 16. Re1 {[%clk 0:01:18]}  Qd7 {[%clk 0:01:53]} 17. e5 {[%clk 0:01:14]}  d5 {[%clk 0:01:48]} 18. Qc2 {[%clk 0:00:55]}  Nxg3 {[%clk 0:01:31]} 19. hxg3 {[%clk 0:00:56]}  d4 {[%clk 0:01:04]} 20. Ne4 {[%clk 0:00:50]}  Qxb5 {[%clk 0:00:46]} 21. Ra3 {[%clk 0:00:26]}  Nd5 {[%clk 0:00:39]} 22. Neg5 {[%clk 0:00:25]}  d3 {[%clk 0:00:24]} 23. Qxd3 {[%clk 0:00:18]}  Qxd3 {[%clk 0:00:24]} 24. Rxd3 {[%clk 0:00:19]}  Bxg5 {[%clk 0:00:11]} 25. Nxg5 {[%clk 0:00:20]}  Rfe8 {[%clk 0:00:10]} 26. Nxe6 {[%clk 0:00:17]}  Nb4 {[%clk 0:00:10]} 27. Rd6 {[%clk 0:00:17]}  Rac8 {[%clk 0:00:09]} 28. Red1 {[%clk 0:00:16]}  Nc2 {[%clk 0:00:08]} 29. f4 {[%clk 0:00:15]}  Ne3 {[%clk 0:00:08]} 30. R1d3 {[%clk 0:00:15]}  Nf5 {[%clk 0:00:08]} 31. Ra6 {[%clk 0:00:14]}  c4 {[%clk 0:00:08]} 32. Rd5 {[%clk 0:00:13]}  c3 {[%clk 0:00:08]} 33. bxc3 {[%clk 0:00:13]}  Rxc3 {[%clk 0:00:09]} 34. g4 {[%clk 0:00:13]}  Ne3 {[%clk 0:00:08]} 35. Rd7 {[%clk 0:00:12]}  Rcc8 {[%clk 0:00:04]} 36. Rxg7+ {[%clk 0:00:10]}  Kh8 {[%clk 0:00:04]} 37. Rf7 {[%clk 0:00:09]}  Nxg4 {[%clk 0:00:04]} 38. Ng5 {[%clk 0:00:07]}  Rc1# {[%clk 0:00:03]} 0-1


[Site "https://www.chess.com"]

[Event "Titled Tuesday Blitz October 31 Late 2023"]
[White "Sjugirov, Sanan"]
[Black "Martinez Alcantara, Jose Eduardo"]
[WhiteFideId "4189302"]
[BlackFideId "3805662"]
[WhiteElo "2947"]
[BlackElo "3124"]
[Result "0-1"]
[Round "5"]
[TimeControl "180+1"]
[Date "2023.10.31"]
[WhiteClock "0:00:00"]
[BlackClock "0:01:11"]
[Board "2"]

1. e4 {[%clk 0:03:00]}  c5 {[%clk 0:03:00]} 2. Nf3 {[%clk 0:03:00]}  d6 {[%clk 0:03:00]} 3. d4 {[%clk 0:02:57]}  cxd4 {[%clk 0:03:01]} 4. Nxd4 {[%clk 0:02:57]}  a6 {[%clk 0:03:02]} 5. c4 {[%clk 0:02:55]}  e6 {[%clk 0:03:03]} 6. Nc3 {[%clk 0:02:55]}  Nf6 {[%clk 0:03:03]} 7. Be2 {[%clk 0:02:50]}  b6 {[%clk 0:03:04]} 8. O-O {[%clk 0:02:50]}  Bb7 {[%clk 0:03:04]} 9. f4 {[%clk 0:02:23]}  Nbd7 {[%clk 0:03:00]} 10. Bf3 {[%clk 0:02:16]}  Qc7 {[%clk 0:03:00]} 11. Be3 {[%clk 0:02:02]}  Be7 {[%clk 0:02:47]} 12. Rc1 {[%clk 0:01:57]}  Nc5 {[%clk 0:02:44]} 13. Qc2 {[%clk 0:01:55]}  Rc8 {[%clk 0:02:43]} 14. f5 {[%clk 0:01:48]}  e5 {[%clk 0:02:43]} 15. Nde2 {[%clk 0:01:48]}  Qb8 {[%clk 0:02:44]} 16. b4 {[%clk 0:01:44]}  Ncd7 {[%clk 0:02:44]} 17. Qd3 {[%clk 0:01:43]}  O-O {[%clk 0:02:42]} 18. g4 {[%clk 0:01:37]}  h6 {[%clk 0:02:42]} 19. Ng3 {[%clk 0:01:27]}  Nh7 {[%clk 0:02:38]} 20. Rc2 {[%clk 0:01:14]}  Bg5 {[%clk 0:02:33]} 21. Bf2 {[%clk 0:01:13]}  Rfd8 {[%clk 0:02:25]} 22. Rd1 {[%clk 0:01:12]}  Nhf6 {[%clk 0:02:17]} 23. Nge2 {[%clk 0:01:09]}  h5 {[%clk 0:01:57]} 24. gxh5 {[%clk 0:01:06]}  b5 {[%clk 0:01:53]} 25. cxb5 {[%clk 0:01:02]}  axb5 {[%clk 0:01:54]} 26. Qxb5 {[%clk 0:00:34]}  d5 {[%clk 0:01:42]} 27. exd5 {[%clk 0:00:30]}  e4 {[%clk 0:01:43]} 28. Bg2 {[%clk 0:00:28]}  Ng4 {[%clk 0:01:43]} 29. d6 {[%clk 0:00:13]}  Nxf2 {[%clk 0:01:26]} 30. Kxf2 {[%clk 0:00:14]}  Qa7+ {[%clk 0:01:27]} 31. Kf1 {[%clk 0:00:12]}  Nf6 {[%clk 0:01:26]} 32. Qa5 {[%clk 0:00:11]}  Qe3 {[%clk 0:01:20]} 33. Qe5 {[%clk 0:00:10]}  Ba6 {[%clk 0:01:10]} 34. b5 {[%clk 0:00:06]}  Bxb5 {[%clk 0:01:10]} 35. Qxb5 {[%clk 0:00:00]}  Ng4 {[%clk 0:01:11]} 0-1


[Site "https://www.chess.com"]

[Event "Titled Tuesday Blitz October 31 Late 2023"]
[White "Pranav, V"]
[Black "Kazakouski, Valery"]
[WhiteFideId "25060783"]
[BlackFideId "13507443"]
[WhiteElo "3052"]
[BlackElo "2886"]
[Result "0-1"]
[Round "5"]
[TimeControl "180+1"]
[Date "2023.10.31"]
[WhiteClock "0:00:01"]
[BlackClock "0:00:08"]
[Board "4"]

1. e4 {[%clk 0:03:00]}  c5 {[%clk 0:02:59]} 2. Nf3 {[%clk 0:03:01]}  a6 {[%clk 0:02:59]} 3. d4 {[%clk 0:02:59]}  cxd4 {[%clk 0:03:00]} 4. Nxd4 {[%clk 0:03:00]}  Nf6 {[%clk 0:03:00]} 5. Nc3 {[%clk 0:02:59]}  e5 {[%clk 0:03:01]} 6. Nf3 {[%clk 0:02:57]}  Bb4 {[%clk 0:03:00]} 7. Bd2 {[%clk 0:02:48]}  d6 {[%clk 0:02:59]} 8. Bd3 {[%clk 0:02:47]}  Nbd7 {[%clk 0:02:59]} 9. O-O {[%clk 0:02:47]}  Nc5 {[%clk 0:02:59]} 10. Re1 {[%clk 0:02:46]}  O-O {[%clk 0:02:59]} 11. h3 {[%clk 0:02:46]}  h6 {[%clk 0:02:57]} 12. a3 {[%clk 0:02:43]}  Bxc3 {[%clk 0:02:57]} 13. Bxc3 {[%clk 0:02:44]}  Na4 {[%clk 0:02:58]} 14. Qd2 {[%clk 0:02:42]}  Qc7 {[%clk 0:02:56]} 15. Bf1 {[%clk 0:02:36]}  Nxc3 {[%clk 0:02:55]} 16. bxc3 {[%clk 0:02:36]}  Be6 {[%clk 0:02:54]} 17. Re3 {[%clk 0:02:33]}  Nd7 {[%clk 0:02:41]} 18. Nh4 {[%clk 0:02:30]}  Nc5 {[%clk 0:02:34]} 19. Rae1 {[%clk 0:02:26]}  Kh7 {[%clk 0:02:22]} 20. Rg3 {[%clk 0:02:06]}  g6 {[%clk 0:02:03]} 21. c4 {[%clk 0:02:04]}  Qe7 {[%clk 0:01:58]} 22. Nf3 {[%clk 0:01:42]}  f5 {[%clk 0:01:56]} 23. exf5 {[%clk 0:01:42]}  gxf5 {[%clk 0:01:57]} 24. Bd3 {[%clk 0:01:35]}  e4 {[%clk 0:01:53]} 25. Nd4 {[%clk 0:01:09]}  exd3 {[%clk 0:01:50]} 26. Rge3 {[%clk 0:00:58]}  Qg5 {[%clk 0:01:28]} 27. cxd3 {[%clk 0:00:37]}  Rae8 {[%clk 0:00:58]} 28. Qa5 {[%clk 0:00:34]}  Rg8 {[%clk 0:00:36]} 29. Rg3 {[%clk 0:00:29]}  Qf6 {[%clk 0:00:24]} 30. Qc7+ {[%clk 0:00:28]}  Bf7 {[%clk 0:00:22]} 31. Rxe8 {[%clk 0:00:24]}  Rxe8 {[%clk 0:00:21]} 32. Nc2 {[%clk 0:00:17]}  f4 {[%clk 0:00:20]} 33. Rf3 {[%clk 0:00:16]}  Re7 {[%clk 0:00:20]} 34. Qb8 {[%clk 0:00:16]}  Bh5 {[%clk 0:00:20]} 35. g4 {[%clk 0:00:16]}  Bg6 {[%clk 0:00:18]} 36. Nb4 {[%clk 0:00:16]}  Bf7 {[%clk 0:00:13]} 37. Kh2 {[%clk 0:00:13]}  Nb3 {[%clk 0:00:13]} 38. d4 {[%clk 0:00:06]}  Nxd4 {[%clk 0:00:12]} 39. Rd3 {[%clk 0:00:07]}  f3 {[%clk 0:00:13]} 40. Rd1 {[%clk 0:00:06]}  Qf4+ {[%clk 0:00:12]} 41. Kh1 {[%clk 0:00:07]}  Re2 {[%clk 0:00:11]} 42. Nd3 {[%clk 0:00:07]}  Qf6 {[%clk 0:00:09]} 43. Qxb7 {[%clk 0:00:07]}  Kg7 {[%clk 0:00:08]} 44. Qd7 {[%clk 0:00:05]}  Qh4 {[%clk 0:00:07]} 45. g5 {[%clk 0:00:05]}  hxg5 {[%clk 0:00:07]} 46. Rg1 {[%clk 0:00:06]}  Ne6 {[%clk 0:00:07]} 47. Rg3 {[%clk 0:00:06]}  Rd2 {[%clk 0:00:06]} 48. Rxf3 {[%clk 0:00:05]}  Qh5 {[%clk 0:00:06]} 49. Kg2 {[%clk 0:00:05]}  Rxd3 {[%clk 0:00:06]} 50. Rxd3 {[%clk 0:00:02]}  Nf4+ {[%clk 0:00:06]} 51. Kh2 {[%clk 0:00:02]}  Nxd3 {[%clk 0:00:07]} 52. Qxd6 {[%clk 0:00:03]}  Nf4 {[%clk 0:00:08]} 53. Qd4+ {[%clk 0:00:03]}  Kh7 {[%clk 0:00:08]} 54. Qe4+ {[%clk 0:00:03]}  Qg6 {[%clk 0:00:09]} 55. Qb7 {[%clk 0:00:01]}  Qf5 {[%clk 0:00:08]} 56. Qf3 {[%clk 0:00:01]}  Be6 {[%clk 0:00:09]} 57. c5 {[%clk 0:00:01]}  Qxh3+ {[%clk 0:00:08]} 0-1


[Site "https://www.chess.com"]

[Event "Titled Tuesday Blitz October 31 Late 2023"]
[White "Aravindh, Chithambaram VR."]
[Black "Elsa167"]
[WhiteFideId "5072786"]
[WhiteElo "2882"]
[BlackElo "2967"]
[Result "1-0"]
[Round "5"]
[TimeControl "180+1"]
[Date "2023.10.31"]
[WhiteClock "0:00:04"]
[BlackClock "0:00:00"]
[Board "6"]

1. d4 {[%clk 0:02:55]}  Nf6 {[%clk 0:02:59]} 2. Nf3 {[%clk 0:02:54]}  g6 {[%clk 0:03:00]} 3. g3 {[%clk 0:02:54]}  Bg7 {[%clk 0:03:00]} 4. Bg2 {[%clk 0:02:55]}  O-O {[%clk 0:03:01]} 5. O-O {[%clk 0:02:56]}  d6 {[%clk 0:03:02]} 6. Nc3 {[%clk 0:02:52]}  d5 {[%clk 0:03:00]} 7. Bf4 {[%clk 0:02:49]}  c6 {[%clk 0:02:58]} 8. a4 {[%clk 0:02:49]}  a5 {[%clk 0:02:52]} 9. Ne5 {[%clk 0:02:49]}  Nbd7 {[%clk 0:02:50]} 10. Qd2 {[%clk 0:02:46]}  Nxe5 {[%clk 0:02:46]} 11. Bxe5 {[%clk 0:02:47]}  Ne8 {[%clk 0:02:18]} 12. e4 {[%clk 0:02:40]}  dxe4 {[%clk 0:02:15]} 13. Bxg7 {[%clk 0:02:36]}  Kxg7 {[%clk 0:01:59]} 14. Nxe4 {[%clk 0:02:36]}  Nd6 {[%clk 0:01:54]} 15. Nc5 {[%clk 0:02:21]}  Qc7 {[%clk 0:01:36]} 16. Rfe1 {[%clk 0:02:21]}  b6 {[%clk 0:01:35]} 17. Nd3 {[%clk 0:02:20]}  Bb7 {[%clk 0:01:33]} 18. Qg5 {[%clk 0:02:15]}  e6 {[%clk 0:01:24]} 19. h4 {[%clk 0:02:07]}  Nf5 {[%clk 0:00:48]} 20. c3 {[%clk 0:01:52]}  Rad8 {[%clk 0:00:44]} 21. Nf4 {[%clk 0:01:50]}  Qe7 {[%clk 0:00:37]} 22. Qg4 {[%clk 0:01:47]}  Kh8 {[%clk 0:00:30]} 23. Re5 {[%clk 0:01:44]}  c5 {[%clk 0:00:27]} 24. d5 {[%clk 0:01:33]}  Qf6 {[%clk 0:00:27]} 25. Rae1 {[%clk 0:01:32]}  exd5 {[%clk 0:00:26]} 26. Bxd5 {[%clk 0:01:30]}  Bc6 {[%clk 0:00:18]} 27. Bxc6 {[%clk 0:00:33]}  Qxc6 {[%clk 0:00:18]} 28. h5 {[%clk 0:00:31]}  Rde8 {[%clk 0:00:14]} 29. hxg6 {[%clk 0:00:29]}  hxg6 {[%clk 0:00:10]} 30. Nd5 {[%clk 0:00:24]}  Rxe5 {[%clk 0:00:08]} 31. Rxe5 {[%clk 0:00:25]}  Re8 {[%clk 0:00:06]} 32. Qf4 {[%clk 0:00:22]}  Kg7 {[%clk 0:00:02]} 33. Qe4 {[%clk 0:00:19]}  Rxe5 {[%clk 0:00:02]} 34. Qxe5+ {[%clk 0:00:20]}  f6 {[%clk 0:00:03]} 35. Qe4 {[%clk 0:00:16]}  Qd6 {[%clk 0:00:03]} 36. Nf4 {[%clk 0:00:16]}  Ne7 {[%clk 0:00:03]} 37. Qb7 {[%clk 0:00:11]}  g5 {[%clk 0:00:03]} 38. Ng2 {[%clk 0:00:10]}  Kg6 {[%clk 0:00:03]} 39. Ne3 {[%clk 0:00:09]}  Nc6 {[%clk 0:00:02]} 40. Qc8 {[%clk 0:00:08]}  Ne7 {[%clk 0:00:02]} 41. Qe8+ {[%clk 0:00:07]}  Kg7 {[%clk 0:00:02]} 42. Kf1 {[%clk 0:00:07]}  Qe6 {[%clk 0:00:02]} 43. Ke2 {[%clk 0:00:06]}  Qf7 {[%clk 0:00:03]} 44. Qd7 {[%clk 0:00:05]}  Ng6 {[%clk 0:00:02]} 45. Nf5+ {[%clk 0:00:05]}  Kg8 {[%clk 0:00:00]} 46. Nh6+ {[%clk 0:00:04]} 1-0


[Site "https://www.chess.com"]

[Event "Titled Tuesday Blitz October 31 Late 2023"]
[White "Javakhadze, Zurab"]
[Black "Hong, Andrew"]
[WhiteFideId "13603647"]
[BlackFideId "2099438"]
[WhiteElo "2784"]
[BlackElo "2959"]
[Result "0-1"]
[Round "5"]
[TimeControl "180+1"]
[Date "2023.10.31"]
[WhiteClock "0:00:00"]
[BlackClock "0:00:04"]
[Board "7"]

1. Nf3 {[%clk 0:03:00]}  d5 {[%clk 0:02:58]} 2. g3 {[%clk 0:03:00]}  Bg4 {[%clk 0:02:57]} 3. Bg2 {[%clk 0:03:01]}  e6 {[%clk 0:02:58]} 4. O-O {[%clk 0:03:01]}  Nf6 {[%clk 0:02:57]} 5. d3 {[%clk 0:03:00]}  Be7 {[%clk 0:02:56]} 6. Nbd2 {[%clk 0:02:55]}  O-O {[%clk 0:02:56]} 7. h3 {[%clk 0:02:53]}  Bh5 {[%clk 0:02:55]} 8. c4 {[%clk 0:02:42]}  c6 {[%clk 0:02:54]} 9. b3 {[%clk 0:02:40]}  Nbd7 {[%clk 0:02:53]} 10. Bb2 {[%clk 0:02:41]}  a5 {[%clk 0:02:54]} 11. a3 {[%clk 0:02:41]}  Qb6 {[%clk 0:02:53]} 12. Rc1 {[%clk 0:02:36]}  Rfd8 {[%clk 0:02:49]} 13. Rc2 {[%clk 0:02:35]}  c5 {[%clk 0:02:36]} 14. cxd5 {[%clk 0:02:29]}  exd5 {[%clk 0:02:37]} 15. d4 {[%clk 0:02:25]}  Bg6 {[%clk 0:02:31]} 16. dxc5 {[%clk 0:01:51]}  Bxc2 {[%clk 0:02:24]} 17. cxb6 {[%clk 0:01:44]}  Bxd1 {[%clk 0:02:23]} 18. Rxd1 {[%clk 0:01:45]}  Nxb6 {[%clk 0:02:20]} 19. Nd4 {[%clk 0:01:41]}  a4 {[%clk 0:02:17]} 20. b4 {[%clk 0:01:37]}  Rac8 {[%clk 0:02:11]} 21. e3 {[%clk 0:01:36]}  g6 {[%clk 0:01:57]} 22. Nb5 {[%clk 0:01:31]}  Rc2 {[%clk 0:01:39]} 23. Bd4 {[%clk 0:01:31]}  Nfd7 {[%clk 0:01:24]} 24. Nb1 {[%clk 0:01:13]}  Bf6 {[%clk 0:01:12]} 25. N1c3 {[%clk 0:01:11]}  Bxd4 {[%clk 0:01:02]} 26. Rxd4 {[%clk 0:01:12]}  Nf6 {[%clk 0:00:53]} 27. Bf3 {[%clk 0:01:04]}  Rc8 {[%clk 0:00:33]} 28. Nxd5 {[%clk 0:00:50]}  Nfxd5 {[%clk 0:00:32]} 29. Bxd5 {[%clk 0:00:50]}  Nxd5 {[%clk 0:00:29]} 30. Rxd5 {[%clk 0:00:51]}  Ra2 {[%clk 0:00:29]} 31. Rd4 {[%clk 0:00:42]}  Rcc2 {[%clk 0:00:28]} 32. Rf4 {[%clk 0:00:42]}  Kf8 {[%clk 0:00:20]} 33. h4 {[%clk 0:00:38]}  Ke7 {[%clk 0:00:20]} 34. g4 {[%clk 0:00:38]}  f6 {[%clk 0:00:19]} 35. Kg2 {[%clk 0:00:32]}  Rd2 {[%clk 0:00:19]} 36. Kg3 {[%clk 0:00:28]}  Ke6 {[%clk 0:00:20]} 37. Re4+ {[%clk 0:00:19]}  Kf7 {[%clk 0:00:19]} 38. Rc4 {[%clk 0:00:18]}  Rxf2 {[%clk 0:00:17]} 39. Rc7+ {[%clk 0:00:17]}  Ke6 {[%clk 0:00:18]} 40. Rxb7 {[%clk 0:00:17]}  h5 {[%clk 0:00:11]} 41. gxh5 {[%clk 0:00:12]}  gxh5 {[%clk 0:00:12]} 42. Nd4+ {[%clk 0:00:11]}  Kd5 {[%clk 0:00:11]} 43. Rd7+ {[%clk 0:00:08]}  Ke4 {[%clk 0:00:10]} 44. Re7+ {[%clk 0:00:09]}  Kd3 {[%clk 0:00:10]} 45. b5 {[%clk 0:00:08]}  Rfb2 {[%clk 0:00:08]} 46. Rd7 {[%clk 0:00:04]}  Rxa3 {[%clk 0:00:08]} 47. b6 {[%clk 0:00:03]}  Ke4 {[%clk 0:00:04]} 48. b7 {[%clk 0:00:00]}  Rxe3+ {[%clk 0:00:04]} 0-1


[Site "https://www.chess.com"]

[Event "Titled Tuesday Blitz October 31 Late 2023"]
[White "Bok, Benjamin"]
[Black "Bashirli, Nail"]
[WhiteFideId "1017063"]
[BlackFideId "13406809"]
[WhiteElo "2956"]
[BlackElo "2773"]
[Result "1-0"]
[Round "5"]
[TimeControl "180+1"]
[Date "2023.10.31"]
[WhiteClock "0:00:34"]
[BlackClock "0:00:18"]
[Board "8"]

1. d4 {[%clk 0:03:00]}  Nf6 {[%clk 0:02:58]} 2. c4 {[%clk 0:02:59]}  b6 {[%clk 0:02:57]} 3. Nc3 {[%clk 0:02:59]}  Bb7 {[%clk 0:02:57]} 4. Qc2 {[%clk 0:02:59]}  g6 {[%clk 0:02:57]} 5. e4 {[%clk 0:02:59]}  d6 {[%clk 0:02:57]} 6. Nf3 {[%clk 0:03:00]}  Bg7 {[%clk 0:02:57]} 7. Be2 {[%clk 0:03:00]}  O-O {[%clk 0:02:58]} 8. O-O {[%clk 0:03:01]}  Nfd7 {[%clk 0:02:57]} 9. Be3 {[%clk 0:02:55]}  Nc6 {[%clk 0:02:55]} 10. d5 {[%clk 0:02:44]}  Nce5 {[%clk 0:02:48]} 11. Nd2 {[%clk 0:02:44]}  Nf6 {[%clk 0:02:40]} 12. h3 {[%clk 0:02:43]}  c6 {[%clk 0:02:36]} 13. f4 {[%clk 0:02:43]}  Ned7 {[%clk 0:02:37]} 14. Nf3 {[%clk 0:02:41]}  Rc8 {[%clk 0:02:36]} 15. Bd4 {[%clk 0:02:33]}  cxd5 {[%clk 0:02:34]} 16. cxd5 {[%clk 0:02:33]}  a6 {[%clk 0:02:27]} 17. Qd2 {[%clk 0:02:25]}  b5 {[%clk 0:02:21]} 18. Qe3 {[%clk 0:02:24]}  b4 {[%clk 0:02:16]} 19. Na4 {[%clk 0:02:23]}  Qa5 {[%clk 0:02:05]} 20. b3 {[%clk 0:02:14]}  Nc5 {[%clk 0:02:05]} 21. Nxc5 {[%clk 0:02:04]}  dxc5 {[%clk 0:02:06]} 22. Be5 {[%clk 0:02:04]}  Qb6 {[%clk 0:01:58]} 23. Rac1 {[%clk 0:01:58]}  e6 {[%clk 0:01:57]} 24. dxe6 {[%clk 0:01:47]}  Qxe6 {[%clk 0:01:57]} 25. Bc4 {[%clk 0:01:43]}  Qb6 {[%clk 0:01:54]} 26. Bxf6 {[%clk 0:01:33]}  Bxf6 {[%clk 0:01:48]} 27. e5 {[%clk 0:01:34]}  Be7 {[%clk 0:01:49]} 28. Ng5 {[%clk 0:01:20]}  Rcd8 {[%clk 0:01:38]} 29. f5 {[%clk 0:01:18]}  Qc6 {[%clk 0:01:08]} 30. Rc2 {[%clk 0:01:09]}  Bxg5 {[%clk 0:01:05]} 31. Qxg5 {[%clk 0:01:08]}  Qe4 {[%clk 0:01:06]} 32. Re2 {[%clk 0:00:59]}  Qd4+ {[%clk 0:01:04]} 33. Kh1 {[%clk 0:00:48]}  Qc3 {[%clk 0:00:51]} 34. fxg6 {[%clk 0:00:42]}  Qxh3+ {[%clk 0:00:21]} 35. Kg1 {[%clk 0:00:42]}  h6 {[%clk 0:00:22]} 36. Bxf7+ {[%clk 0:00:35]}  Rxf7 {[%clk 0:00:18]} 37. Qxd8+ {[%clk 0:00:34]} 1-0


[Site "https://www.chess.com"]